[Event "*** Titled Tuesday Blitz"]
[Site "Chess.com"]
[Date "2019.11.05"]
[Round "6"]
[White "13MiRacLe"]
[Black "ural58"]
[Result "0-1"]
[WhiteElo "2599"]
[BlackElo "2468"]
[TimeControl "180+2"]
[EndTime "14:21:58 PST"]
[Termination "ural58 won by resignation"]

1. e4 {[%clk 0:01:13.4]} 1... d5 {[%clk 0:02:57]} 2. exd5 {[%clk 0:01:13.4]}
2... Qxd5 {[%clk 0:02:58.4]} 3. Nc3 {[%clk 0:01:14.8]} 3... Qa5 {[%clk
0:02:59.7]} 4. d4 {[%clk 0:01:16.3]} 4... Nf6 {[%clk 0:03:01]} 5. Nf3 {[%clk
0:01:17.8]} 5... Nc6 {[%clk 0:03:02]} 6. Bb5 {[%clk 0:01:15.9]} 6... Ne4 {[%clk
0:03:02.7]} 7. a4 {[%clk 0:01:10.1]} 7... Nxc3 {[%clk 0:03:02.8]} 8. bxc3 {[%clk
0:01:11.7]} 8... a6 {[%clk 0:03:03.6]} 9. Bxc6+ {[%clk 0:01:11.7]} 9... bxc6
{[%clk 0:03:05.5]} 10. O-O {[%clk 0:01:07.3]} 10... Bg4 {[%clk 0:03:05.6]} 11.
Qd3 {[%clk 0:01:07.7]} 11... Qf5 {[%clk 0:02:59.1]} 12. Ne5 {[%clk 0:01:06.1]}
12... Qxd3 {[%clk 0:02:58]} 13. cxd3 {[%clk 0:01:08]} 13... Bf5 {[%clk
0:02:47.5]} 14. Rd1 {[%clk 0:01:03.9]} 14... f6 {[%clk 0:02:32.4]} 15. Nxc6
{[%clk 0:01:03.9]} 15... e6 {[%clk 0:02:32.3]} 16. Bf4 {[%clk 0:01:02.7]} 16...
Kd7 {[%clk 0:02:29.2]} 17. Na5 {[%clk 0:01:00.6]} 17... g5 {[%clk 0:02:29]} 18.
Be3 {[%clk 0:00:56.8]} 18... Be7 {[%clk 0:02:15.3]} 19. Kf1 {[%clk 0:00:50.1]}
19... Rhb8 {[%clk 0:02:15.2]} 20. Nc4 {[%clk 0:00:50.9]} 20... h5 {[%clk
0:02:14]} 21. h3 {[%clk 0:00:50.2]} 21... Rb3 {[%clk 0:02:10.8]} 22. Rac1 {[%clk
0:00:38.5]} 22... Rab8 {[%clk 0:02:04.1]} 23. Ke2 {[%clk 0:00:39.2]} 23... h4
{[%clk 0:02:04]} 24. Kd2 {[%clk 0:00:37.7]} 24... Ba3 {[%clk 0:01:50.6]} 25. Rc2
{[%clk 0:00:28.8]} 25... Bg6 {[%clk 0:01:41.7]} 26. Na5 {[%clk 0:00:17.7]} 26...
Rb2 {[%clk 0:01:36.8]} 27. Nc4 {[%clk 0:00:18.4]} 27... R2b3 {[%clk 0:01:36.7]}
28. Ra1 {[%clk 0:00:18.9]} 28... Be7 {[%clk 0:01:36]} 29. Na5 {[%clk 0:00:16]}
29... Rb1 {[%clk 0:01:29]} 30. Rxb1 {[%clk 0:00:15.2]} 30... Rxb1 {[%clk
0:01:29.9]} 31. Rc1 {[%clk 0:00:12.9]} 31... Rxc1 {[%clk 0:01:27.9]} 32. Kxc1
{[%clk 0:00:14.8]} 32... Bxd3 {[%clk 0:01:29.6]} 33. g3 {[%clk 0:00:15.3]} 33...
Bf1 {[%clk 0:01:28.6]} 34. gxh4 {[%clk 0:00:16.6]} 34... gxh4 {[%clk 0:01:30.5]}
35. f3 {[%clk 0:00:06.3]} 35... Bxh3 {[%clk 0:01:30.6]} 36. Bf2 {[%clk
0:00:07.9]} 36... f5 {[%clk 0:01:31.3]} 37. Kd2 {[%clk 0:00:09.2]} 37... Bf1
{[%clk 0:01:24.9]} 38. Ke1 {[%clk 0:00:07.6]} 38... Bd3 {[%clk 0:01:24.9]} 39.
Nb3 {[%clk 0:00:08.5]} 39... h3 {[%clk 0:01:21.9]} 40. Bg3 {[%clk 0:00:09.6]}
40... Bc2 {[%clk 0:01:19.3]} 41. Nc5+ {[%clk 0:00:05.8]} 41... Bxc5 {[%clk
0:01:20.2]} 42. dxc5 {[%clk 0:00:07.7]} 42... Bxa4 {[%clk 0:01:22.1]} 43. Kd2
{[%clk 0:00:07.8]} 43... Kc6 {[%clk 0:01:18.1]} 44. Ke3 {[%clk 0:00:08.9]} 44...
Kd5 {[%clk 0:01:18.1]} 45. Bxc7 {[%clk 0:00:08.8]} 45... e5 {[%clk 0:01:18.9]}
46. Kf2 {[%clk 0:00:07.9]} 46... f4 {[%clk 0:01:18.5]} 47. Bb8 {[%clk
0:00:05.2]} 47... Bd7 {[%clk 0:01:14.6]} 48. Bc7 {[%clk 0:00:05.3]} 48... Be8
{[%clk 0:01:07.2]} 49. Bb8 {[%clk 0:00:06.3]} 49... a5 {[%clk 0:01:07.2]} 50.
c4+ {[%clk 0:00:07]} 50... Kd4 {[%clk 0:01:05.9]} 51. Bd6 {[%clk 0:00:05.5]}
51... Bc6 {[%clk 0:01:05.6]} 0-1

[Event "*** Titled Tuesday Blitz"]
[Site "Chess.com"]
[Date "2019.11.05"]
[Round "6"]
[White "ChessWarrior7197"]
[Black "YQPerez"]
[Result "1/2-1/2"]
[WhiteElo "2954"]
[BlackElo "2891"]
[TimeControl "180+2"]
[EndTime "14:22:00 PST"]
[Termination "Game drawn by agreement"]

1. e4 {[%clk 0:03:01.9]} 1... e5 {[%clk 0:02:59.7]} 2. Nf3 {[%clk 0:03:02.8]}
2... Nc6 {[%clk 0:03:01.3]} 3. Bb5 {[%clk 0:03:02.8]} 3... a6 {[%clk 0:03:01.2]}
4. Ba4 {[%clk 0:03:03.7]} 4... Nf6 {[%clk 0:03:02.2]} 5. O-O {[%clk 0:03:04.3]}
5... b5 {[%clk 0:02:57.4]} 6. Bb3 {[%clk 0:03:04.7]} 6... Be7 {[%clk 0:02:58.1]}
7. Re1 {[%clk 0:03:01.2]} 7... O-O {[%clk 0:02:57.5]} 8. c3 {[%clk 0:03:01.6]}
8... d5 {[%clk 0:02:57.6]} 9. exd5 {[%clk 0:03:02.2]} 9... Nxd5 {[%clk
0:02:59.5]} 10. Nxe5 {[%clk 0:03:03.7]} 10... Nxe5 {[%clk 0:02:59]} 11. Rxe5
{[%clk 0:03:05.6]} 11... c6 {[%clk 0:03:00.3]} 12. d3 {[%clk 0:03:06.6]} 12...
Bd6 {[%clk 0:03:00.2]} 13. Re1 {[%clk 0:03:07.1]} 13... Bf5 {[%clk 0:02:54.3]}
14. Qf3 {[%clk 0:03:00.6]} 14... Qh4 {[%clk 0:02:52.6]} 15. g3 {[%clk
0:03:00.2]} 15... Qh3 {[%clk 0:02:53.7]} 16. Be3 {[%clk 0:03:01.1]} 16... Bxd3
{[%clk 0:02:51.7]} 17. Nd2 {[%clk 0:03:02.3]} 17... Qf5 {[%clk 0:02:50.1]} 18.
Bd4 {[%clk 0:03:02.8]} 18... Rfe8 {[%clk 0:02:47.1]} 19. a4 {[%clk 0:03:02.4]}
19... Qxf3 {[%clk 0:02:42.3]} 20. Nxf3 {[%clk 0:03:00.4]} 20... h6 {[%clk
0:02:42.9]} 21. Be5 {[%clk 0:02:48.6]} 21... Bf8 {[%clk 0:02:39.3]} 22. Nd4
{[%clk 0:02:43]} 22... Rac8 {[%clk 0:02:30.3]} 23. axb5 {[%clk 0:02:37.2]} 23...
axb5 {[%clk 0:02:32.2]} 24. Rad1 {[%clk 0:02:09.2]} 24... Bc4 {[%clk 0:02:21.9]}
25. Bc2 {[%clk 0:01:55.9]} 25... f6 {[%clk 0:02:02.4]} 26. Bf4 {[%clk
0:01:55.7]} 26... Nxf4 {[%clk 0:02:01.5]} 27. gxf4 {[%clk 0:01:57.6]} 27...
Rxe1+ {[%clk 0:01:59.5]} 28. Rxe1 {[%clk 0:01:58.1]} 28... Bc5 {[%clk
0:01:58.1]} 29. Bf5 {[%clk 0:01:55.9]} 29... Rd8 {[%clk 0:01:56.8]} 30. Be6+
{[%clk 0:01:33.1]} 30... Kf8 {[%clk 0:01:32.2]} 31. Bxc4 {[%clk 0:01:17.3]}
31... Bxd4 {[%clk 0:01:33]} 32. Be2 {[%clk 0:01:11.8]} 32... Bb6 {[%clk
0:01:31.3]} 33. Bh5 {[%clk 0:01:12.3]} 33... Bc7 {[%clk 0:01:25.4]} 34. Re6
{[%clk 0:01:07.3]} 34... c5 {[%clk 0:01:17.9]} 35. f5 {[%clk 0:01:07.3]} 35...
Be5 {[%clk 0:01:16.3]} 36. Bg6 {[%clk 0:01:05.1]} 36... b4 {[%clk 0:01:12.3]}
37. cxb4 {[%clk 0:01:05.9]} 37... cxb4 {[%clk 0:01:14.2]} 38. b3 {[%clk
0:01:07.3]} 38... Rb8 {[%clk 0:01:06.2]} 39. h4 {[%clk 0:01:07.8]} 39... Rd8
{[%clk 0:01:04.7]} 40. Kf1 {[%clk 0:01:08.6]} 40... Rb8 {[%clk 0:01:02.9]} 41.
Ke2 {[%clk 0:01:08.7]} 41... Rd8 {[%clk 0:01:02]} 42. Rb6 {[%clk 0:01:07.2]}
42... Rb8 {[%clk 0:01:01.1]} 43. Re6 {[%clk 0:01:07.9]} 43... Rd8 {[%clk
0:01:01.6]} 44. h5 {[%clk 0:01:09.1]} 44... Rb8 {[%clk 0:00:58.5]} 45. Kd3
{[%clk 0:01:09.9]} 45... Rd8+ {[%clk 0:00:57.9]} 46. Kc4 {[%clk 0:01:09]} 46...
Bd6 {[%clk 0:00:56]} 47. Kb5 {[%clk 0:01:03]} 47... Rb8+ {[%clk 0:00:49.5]} 48.
Kc6 {[%clk 0:00:58.7]} 48... Be7 {[%clk 0:00:51.4]} 49. Kc7 {[%clk 0:00:56]}
49... Ra8 {[%clk 0:00:50.9]} 50. f3 {[%clk 0:00:53.9]} 50... Ra5 {[%clk
0:00:47.9]} 51. Rb6 {[%clk 0:00:52.8]} 51... Rc5+ {[%clk 0:00:47.2]} 52. Kb7
{[%clk 0:00:48.3]} 52... Rd5 {[%clk 0:00:46.9]} 53. Ra6 {[%clk 0:00:44.2]} 53...
Rd7+ {[%clk 0:00:45.6]} 54. Kc8 {[%clk 0:00:44.5]} 54... Rd3 {[%clk 0:00:43.6]}
1/2-1/2

[Event "*** Titled Tuesday Blitz"]
[Site "Chess.com"]
[Date "2019.11.05"]
[Round "6"]
[White "raswi"]
[Black "Manukyan_Artak"]
[Result "0-1"]
[WhiteElo "2213"]
[BlackElo "2391"]
[TimeControl "180+2"]
[EndTime "14:22:00 PST"]
[Termination "Manukyan_Artak won by resignation"]

1. e4 {[%clk 0:03:00.8]} 1... c6 {[%clk 0:03:00.7]} 2. d4 {[%clk 0:03:01.4]}
2... d5 {[%clk 0:03:02.6]} 3. e5 {[%clk 0:03:03]} 3... Bf5 {[%clk 0:03:03.1]} 4.
Nc3 {[%clk 0:03:04.2]} 4... e6 {[%clk 0:03:04.3]} 5. g4 {[%clk 0:03:05.6]} 5...
Bg6 {[%clk 0:03:05.6]} 6. Nge2 {[%clk 0:03:06.9]} 6... c5 {[%clk 0:03:04.8]} 7.
h4 {[%clk 0:03:08.1]} 7... h6 {[%clk 0:03:05.3]} 8. Be3 {[%clk 0:03:07.3]} 8...
Nc6 {[%clk 0:03:05.5]} 9. dxc5 {[%clk 0:02:52.3]} 9... Nxe5 {[%clk 0:03:04.5]}
10. Nd4 {[%clk 0:02:24.1]} 10... Ne7 {[%clk 0:02:50.7]} 11. Bb5+ {[%clk
0:02:22.8]} 11... N5c6 {[%clk 0:02:45.6]} 12. h5 {[%clk 0:02:07.4]} 12... Bh7
{[%clk 0:02:45.4]} 13. f4 {[%clk 0:01:51.7]} 13... a6 {[%clk 0:02:41.6]} 14. Be2
{[%clk 0:01:46.1]} 14... Nxd4 {[%clk 0:02:37.3]} 15. Bxd4 {[%clk 0:01:45.3]}
15... Nc6 {[%clk 0:02:38.8]} 16. Qd2 {[%clk 0:01:20.8]} 16... Nxd4 {[%clk
0:02:26.7]} 17. Qxd4 {[%clk 0:01:21.7]} 17... Bxc2 {[%clk 0:02:28.2]} 18. Rc1
{[%clk 0:01:19.8]} 18... Bh7 {[%clk 0:02:20.5]} 19. Qa4+ {[%clk 0:01:06.9]}
19... Ke7 {[%clk 0:02:13.4]} 20. Bf3 {[%clk 0:00:58.7]} 20... Rc8 {[%clk
0:01:55.9]} 21. O-O {[%clk 0:00:57.7]} 21... Rxc5 {[%clk 0:01:35.5]} 22. Rfe1
{[%clk 0:00:33.1]} 22... Qb6 {[%clk 0:01:25.3]} 23. Kh1 {[%clk 0:00:30.6]} 23...
Kd8 {[%clk 0:01:18.4]} 24. Rcd1 {[%clk 0:00:21.3]} 24... Bd6 {[%clk 0:01:11.3]}
25. f5 {[%clk 0:00:12.9]} 25... Qxb2 {[%clk 0:00:54.5]} 26. Ne4 {[%clk
0:00:14.1]} 26... Qe5 {[%clk 0:00:51.5]} 27. Nxd6 {[%clk 0:00:15.3]} 27... Qxd6
{[%clk 0:00:52.4]} 28. Qb4 {[%clk 0:00:10.9]} 28... Kc7 {[%clk 0:00:35]} 29. Rb1
{[%clk 0:00:07.2]} 29... b6 {[%clk 0:00:33.1]} 30. a4 {[%clk 0:00:06.4]} 30...
a5 {[%clk 0:00:31.6]} 31. Qb2 {[%clk 0:00:05.9]} 31... d4 {[%clk 0:00:22.5]} 32.
Rbd1 {[%clk 0:00:05.9]} 32... Rd8 {[%clk 0:00:19.4]} 33. fxe6 {[%clk 0:00:07.2]}
33... fxe6 {[%clk 0:00:20.3]} 34. Qg2 {[%clk 0:00:04.4]} 34... e5 {[%clk
0:00:19.1]} 35. Ba8 {[%clk 0:00:05.3]} 35... e4 {[%clk 0:00:20.3]} 36. Bxe4
{[%clk 0:00:05.1]} 36... Bxe4 {[%clk 0:00:21.8]} 37. Rxe4 {[%clk 0:00:06.4]}
37... d3 {[%clk 0:00:20.7]} 38. Re3 {[%clk 0:00:04.5]} 38... Qd5 {[%clk
0:00:19.6]} 39. Rexd3 {[%clk 0:00:03.5]} 39... Qxg2+ {[%clk 0:00:20.7]} 40. Kxg2
{[%clk 0:00:04.6]} 40... Rxd3 {[%clk 0:00:22.3]} 41. Rxd3 {[%clk 0:00:05.5]}
41... Rc4 {[%clk 0:00:24.2]} 42. Kg3 {[%clk 0:00:03.8]} 42... Rxa4 {[%clk
0:00:24.9]} 43. Rf3 {[%clk 0:00:05.2]} 43... Rd4 {[%clk 0:00:23.9]} 44. Rf7+
{[%clk 0:00:03.3]} 44... Rd7 {[%clk 0:00:25]} 45. Rf5 {[%clk 0:00:04.9]} 45...
Kc6 {[%clk 0:00:25.4]} 46. g5 {[%clk 0:00:06.1]} 46... hxg5 {[%clk 0:00:25.7]}
47. Rxg5 {[%clk 0:00:08]} 47... a4 {[%clk 0:00:26.1]} 48. Kf4 {[%clk 0:00:05.1]}
48... Ra7 {[%clk 0:00:24.3]} 49. Rg2 {[%clk 0:00:04.8]} 49... a3 {[%clk
0:00:25.1]} 50. Ke4 {[%clk 0:00:05.8]} 0-1

[Event "*** Titled Tuesday Blitz"]
[Site "Chess.com"]
[Date "2019.11.05"]
[Round "6"]
[White "coolthing"]
[Black "kingofthenil"]
[Result "0-1"]
[WhiteElo "2356"]
[BlackElo "2534"]
[TimeControl "180+2"]
[EndTime "14:22:04 PST"]
[Termination "kingofthenil won on time"]

1. b3 {[%clk 0:03:01.9]} 1... Nf6 {[%clk 0:02:24.3]} 2. Bb2 {[%clk 0:03:03.8]}
2... b6 {[%clk 0:02:23]} 3. e3 {[%clk 0:03:05.7]} 3... Bb7 {[%clk 0:02:24.9]} 4.
Nf3 {[%clk 0:03:07.6]} 4... c5 {[%clk 0:02:15.1]} 5. d4 {[%clk 0:03:08.7]} 5...
e6 {[%clk 0:02:04.6]} 6. Be2 {[%clk 0:03:06.9]} 6... Be7 {[%clk 0:02:05.2]} 7.
O-O {[%clk 0:03:05.3]} 7... O-O {[%clk 0:02:05]} 8. c4 {[%clk 0:03:05.1]} 8...
cxd4 {[%clk 0:02:04.4]} 9. Nxd4 {[%clk 0:03:04.7]} 9... d6 {[%clk 0:02:05.5]}
10. Bf3 {[%clk 0:03:00.8]} 10... Qd7 {[%clk 0:02:04.6]} 11. Nc3 {[%clk
0:02:52.3]} 11... a6 {[%clk 0:02:04.6]} 12. Na4 {[%clk 0:02:46.1]} 12... Qc7
{[%clk 0:02:05.5]} 13. Rc1 {[%clk 0:02:44.4]} 13... Nbd7 {[%clk 0:02:05]} 14.
Nc3 {[%clk 0:02:38.7]} 14... Rac8 {[%clk 0:02:03.2]} 15. Qd2 {[%clk 0:02:28.4]}
15... Rfd8 {[%clk 0:01:58.8]} 16. Rfd1 {[%clk 0:02:23.8]} 16... Qb8 {[%clk
0:01:58.9]} 17. h3 {[%clk 0:02:15.8]} 17... h6 {[%clk 0:01:55.1]} 18. Ba3 {[%clk
0:01:53]} 18... Nc5 {[%clk 0:01:52.8]} 19. Bb2 {[%clk 0:01:50.4]} 19... Bf8
{[%clk 0:01:53.1]} 20. Qe2 {[%clk 0:01:21]} 20... Nfe4 {[%clk 0:01:51.8]} 21.
Nxe4 {[%clk 0:01:18.3]} 21... Nxe4 {[%clk 0:01:53.7]} 22. Qc2 {[%clk 0:01:04.4]}
22... Qa8 {[%clk 0:01:53.4]} 23. Ne2 {[%clk 0:00:58.7]} 23... b5 {[%clk
0:01:48]} 24. Qb1 {[%clk 0:00:41.3]} 24... bxc4 {[%clk 0:01:48.2]} 25. Rxc4
{[%clk 0:00:39.5]} 25... Rxc4 {[%clk 0:01:47.6]} 26. bxc4 {[%clk 0:00:40.6]}
26... Rb8 {[%clk 0:01:49]} 27. Qc2 {[%clk 0:00:37]} 27... Bc6 {[%clk 0:01:47.9]}
28. Nd4 {[%clk 0:00:36.5]} 28... Bb7 {[%clk 0:01:47.4]} 29. Nb3 {[%clk
0:00:35.2]} 29... a5 {[%clk 0:01:42.4]} 30. Rd4 {[%clk 0:00:29.9]} 30... f5
{[%clk 0:01:19.8]} 31. Nd2 {[%clk 0:00:11.6]} 31... Nxd2 {[%clk 0:01:18.2]} 32.
Bxb7 {[%clk 0:00:12.5]} 32... Qxb7 {[%clk 0:01:20.1]} 33. Rxd2 {[%clk
0:00:13.7]} 33... Qc6 {[%clk 0:01:16.4]} 34. Ba3 {[%clk 0:00:09.1]} 34... Rc8
{[%clk 0:01:16.1]} 35. Qc3 {[%clk 0:00:08]} 35... Kf7 {[%clk 0:01:10.9]} 36.
Qxa5 {[%clk 0:00:06.4]} 36... Ra8 {[%clk 0:01:02.4]} 37. Qc3 {[%clk 0:00:07.4]}
37... Ra4 {[%clk 0:01:00.6]} 38. c5 {[%clk 0:00:05.8]} 38... d5 {[%clk
0:00:59.7]} 39. Rb2 {[%clk 0:00:06]} 39... Qa6 {[%clk 0:00:53.4]} 40. Bb4 {[%clk
0:00:06.3]} 40... Rxa2 {[%clk 0:00:50.1]} 41. Rxa2 {[%clk 0:00:08.2]} 41... Qxa2
{[%clk 0:00:51.7]} 42. c6 {[%clk 0:00:08.7]} 42... Qb1+ {[%clk 0:00:51.1]} 43.
Kh2 {[%clk 0:00:09.9]} 43... Bxb4 {[%clk 0:00:51.4]} 44. Qe5 {[%clk 0:00:08.9]}
44... Qe4 {[%clk 0:00:40.4]} 45. Qc7+ {[%clk 0:00:07]} 45... Kg6 {[%clk
0:00:37.7]} 46. Qd7 {[%clk 0:00:06.4]} 46... Qe5+ {[%clk 0:00:37.8]} 47. f4
{[%clk 0:00:06.2]} 47... Qxe3 {[%clk 0:00:37.3]} 48. c7 {[%clk 0:00:05.7]} 48...
Qxf4+ {[%clk 0:00:38.3]} 49. g3 {[%clk 0:00:07]} 49... Qf2+ {[%clk 0:00:37.4]}
50. Kh1 {[%clk 0:00:08.5]} 50... Bc5 {[%clk 0:00:36.6]} 51. Qxe6+ {[%clk
0:00:08.5]} 51... Kh7 {[%clk 0:00:37.9]} 52. Qg8+ {[%clk 0:00:04.8]} 52... Kxg8
{[%clk 0:00:38.8]} 53. c8=Q+ {[%clk 0:00:05.8]} 53... Kh7 {[%clk 0:00:40.7]} 0-1

[Event "*** Titled Tuesday Blitz"]
[Site "Chess.com"]
[Date "2019.11.05"]
[Round "6"]
[White "politeplayer"]
[Black "wild_cat99"]
[Result "1-0"]
[WhiteElo "2238"]
[BlackElo "2379"]
[TimeControl "180+2"]
[EndTime "14:22:14 PST"]
[Termination "politeplayer won by resignation"]

1. e4 {[%clk 0:03:01.9]} 1... c5 {[%clk 0:03:01.1]} 2. d4 {[%clk 0:03:02.5]}
2... cxd4 {[%clk 0:03:02.1]} 3. c3 {[%clk 0:03:03.4]} 3... dxc3 {[%clk
0:03:03.5]} 4. Nxc3 {[%clk 0:03:03.7]} 4... Nc6 {[%clk 0:03:04.9]} 5. Nf3 {[%clk
0:03:04.6]} 5... a6 {[%clk 0:03:06.3]} 6. Bc4 {[%clk 0:03:05.7]} 6... d6 {[%clk
0:03:07.7]} 7. O-O {[%clk 0:03:05.5]} 7... Bg4 {[%clk 0:03:08.3]} 8. Bxf7+
{[%clk 0:03:04.1]} 8... Kxf7 {[%clk 0:03:08.1]} 9. Ng5+ {[%clk 0:03:05]} 9...
Ke8 {[%clk 0:03:08.1]} 10. Qxg4 {[%clk 0:03:05.7]} 10... Nf6 {[%clk 0:03:07.5]}
11. Qe6 {[%clk 0:03:02.2]} 11... Qb8 {[%clk 0:02:38.3]} 12. Qf7+ {[%clk
0:02:50.4]} 12... Kd7 {[%clk 0:02:39.3]} 13. Nd5 {[%clk 0:02:23.5]} 13... h6
{[%clk 0:02:36.8]} 14. Nb6+ {[%clk 0:02:09]} 14... Kc7 {[%clk 0:02:36.3]} 15.
Nxa8+ {[%clk 0:02:08.6]} 15... Qxa8 {[%clk 0:02:36.6]} 16. Ne6+ {[%clk
0:02:06.8]} 16... Kd7 {[%clk 0:02:37.7]} 17. Be3 {[%clk 0:01:54.5]} 17... Ne5
{[%clk 0:02:37]} 18. Nxf8+ {[%clk 0:01:52.2]} 18... Rxf8 {[%clk 0:02:37.7]} 19.
Qb3 {[%clk 0:01:50.4]} 19... b5 {[%clk 0:02:38.7]} 20. a4 {[%clk 0:01:47.7]}
20... Qxe4 {[%clk 0:02:32.6]} 21. f3 {[%clk 0:01:39]} 21... Qc6 {[%clk
0:02:25.7]} 22. Rfc1 {[%clk 0:01:31.9]} 22... bxa4 {[%clk 0:02:20.3]} 23. Rxa4
{[%clk 0:01:25.4]} 23... Qb5 {[%clk 0:02:17.2]} 24. Rb4 {[%clk 0:01:21.5]} 24...
Qd5 {[%clk 0:02:18.6]} 25. Rb7+ {[%clk 0:01:10.5]} 25... Ke6 {[%clk 0:02:18.8]}
26. Rcc7 {[%clk 0:00:58.5]} 26... Ng6 {[%clk 0:02:16.1]} 27. Qxd5+ {[%clk
0:00:44.5]} 27... Nxd5 {[%clk 0:02:18]} 28. Rc1 {[%clk 0:00:36.3]} 28... Ngf4
{[%clk 0:02:07.7]} 29. Bxf4 {[%clk 0:00:35.5]} 29... Nxf4 {[%clk 0:02:08.2]} 30.
Re1+ {[%clk 0:00:34.5]} 30... Kf5 {[%clk 0:02:08.8]} 31. Rexe7 {[%clk
0:00:32.4]} 31... g5 {[%clk 0:02:07.7]} 32. Rf7+ {[%clk 0:00:32.4]} 32... Rxf7
{[%clk 0:02:08.6]} 33. Rxf7+ {[%clk 0:00:32.5]} 33... Ke5 {[%clk 0:02:09.1]} 34.
Ra7 {[%clk 0:00:31.2]} 34... Nd3 {[%clk 0:02:08.3]} 35. b3 {[%clk 0:00:29.9]}
35... Nc1 {[%clk 0:02:02.4]} 36. b4 {[%clk 0:00:26]} 36... Nd3 {[%clk
0:02:03.6]} 37. Rxa6 {[%clk 0:00:23.7]} 37... Nxb4 {[%clk 0:02:04.2]} 38. Ra7
{[%clk 0:00:24.5]} 38... d5 {[%clk 0:01:55.2]} 39. Rh7 {[%clk 0:00:23.8]} 39...
Kd4 {[%clk 0:01:23.3]} 40. Kf2 {[%clk 0:00:21.2]} 40... Nd3+ {[%clk 0:01:22.2]}
41. Kg3 {[%clk 0:00:21.4]} 41... Ke3 {[%clk 0:01:20.9]} 42. Rxh6 {[%clk
0:00:22]} 42... Nf4 {[%clk 0:01:21.8]} 43. Rh8 {[%clk 0:00:21.7]} 43... d4
{[%clk 0:01:21.3]} 44. Re8+ {[%clk 0:00:21]} 44... Kd2 {[%clk 0:01:17.8]} 45. h4
{[%clk 0:00:21.7]} 45... Nh5+ {[%clk 0:01:16.4]} 46. Kf2 {[%clk 0:00:21]} 46...
gxh4 {[%clk 0:01:15.7]} 47. Rh8 {[%clk 0:00:21.4]} 47... Nf4 {[%clk 0:01:15]}
48. Rxh4 {[%clk 0:00:21.9]} 48... Nd3+ {[%clk 0:01:16.2]} 49. Kf1 {[%clk
0:00:22.1]} 49... Kc3 {[%clk 0:01:15.2]} 50. g4 {[%clk 0:00:22.1]} 50... Ne5
{[%clk 0:01:14.2]} 51. g5 {[%clk 0:00:20.3]} 51... d3 {[%clk 0:01:12.4]} 52. f4
{[%clk 0:00:19]} 52... d2 {[%clk 0:01:09.4]} 53. Ke2 {[%clk 0:00:19.7]} 53...
Kc2 {[%clk 0:01:08.7]} 54. Rh1 {[%clk 0:00:20.9]} 54... Ng6 {[%clk 0:01:06.5]}
55. f5 {[%clk 0:00:21.1]} 55... Nf4+ {[%clk 0:01:07.9]} 56. Kf3 {[%clk
0:00:21.2]} 56... Nd5 {[%clk 0:01:07.9]} 57. g6 {[%clk 0:00:20.6]} 57... Nf6
{[%clk 0:01:01.2]} 58. Kf4 {[%clk 0:00:20.1]} 58... d1=Q {[%clk 0:01:00.7]} 59.
Rxd1 {[%clk 0:00:19.2]} 59... Kxd1 {[%clk 0:01:02.6]} 60. Ke5 {[%clk 0:00:19.1]}
60... Ng4+ {[%clk 0:01:02.7]} 61. Ke6 {[%clk 0:00:20.2]} 61... Nh6 {[%clk
0:00:56.5]} 62. f6 {[%clk 0:00:21]} 62... Ke2 {[%clk 0:00:56.1]} 63. f7 {[%clk
0:00:21.9]} 1-0

[Event "*** Titled Tuesday Blitz"]
[Site "Chess.com"]
[Date "2019.11.05"]
[Round "6"]
[White "belisarius64"]
[Black "Hadza_3"]
[Result "0-1"]
[WhiteElo "2572"]
[BlackElo "2400"]
[TimeControl "180+2"]
[EndTime "14:22:17 PST"]
[Termination "Hadza_3 won on time"]

1. e4 {[%clk 0:03:01.9]} 1... e5 {[%clk 0:03:01]} 2. Nf3 {[%clk 0:03:02.8]} 2...
Nc6 {[%clk 0:03:02.1]} 3. Bb5 {[%clk 0:03:03.3]} 3... g6 {[%clk 0:03:03.3]} 4.
O-O {[%clk 0:03:02.4]} 4... Bg7 {[%clk 0:03:03.8]} 5. c3 {[%clk 0:03:03.9]} 5...
d6 {[%clk 0:03:04.8]} 6. d4 {[%clk 0:03:05]} 6... Bd7 {[%clk 0:03:06.1]} 7. Re1
{[%clk 0:03:03.7]} 7... Nge7 {[%clk 0:03:01.3]} 8. Na3 {[%clk 0:02:43.7]} 8...
O-O {[%clk 0:03:01.4]} 9. Be3 {[%clk 0:02:33]} 9... a6 {[%clk 0:02:59.7]} 10.
Ba4 {[%clk 0:02:27.1]} 10... b5 {[%clk 0:02:53.5]} 11. Bb3 {[%clk 0:02:25.4]}
11... Na5 {[%clk 0:02:52.7]} 12. Bc2 {[%clk 0:02:16.5]} 12... Bg4 {[%clk
0:02:38.9]} 13. b4 {[%clk 0:01:57]} 13... Bxf3 {[%clk 0:02:09.9]} 14. Qxf3
{[%clk 0:01:56.7]} 14... exd4 {[%clk 0:02:07.7]} 15. Bxd4 {[%clk 0:01:45.8]}
15... Nac6 {[%clk 0:02:02.1]} 16. Bxg7 {[%clk 0:01:43.4]} 16... Kxg7 {[%clk
0:02:04]} 17. c4 {[%clk 0:01:37.6]} 17... bxc4 {[%clk 0:01:58.2]} 18. Nxc4
{[%clk 0:01:38]} 18... Kg8 {[%clk 0:01:53.7]} 19. Qc3 {[%clk 0:01:37.1]} 19...
d5 {[%clk 0:01:46.7]} 20. Na5 {[%clk 0:01:27.6]} 20... Nxa5 {[%clk 0:01:15.1]}
21. bxa5 {[%clk 0:01:29.5]} 21... Rb8 {[%clk 0:00:54.6]} 22. Rad1 {[%clk
0:01:27.2]} 22... c6 {[%clk 0:00:52.8]} 23. Bb3 {[%clk 0:01:25.5]} 23... Rb5
{[%clk 0:00:51.8]} 24. exd5 {[%clk 0:01:13.4]} 24... cxd5 {[%clk 0:00:49.2]} 25.
Qf6 {[%clk 0:01:08]} 25... Nf5 {[%clk 0:00:37.5]} 26. Qxa6 {[%clk 0:01:00.3]}
26... Rxa5 {[%clk 0:00:38.4]} 27. Qd3 {[%clk 0:00:59.5]} 27... d4 {[%clk
0:00:34.4]} 28. h3 {[%clk 0:00:57.2]} 28... h5 {[%clk 0:00:32.5]} 29. Rc1 {[%clk
0:00:54.4]} 29... Re8 {[%clk 0:00:30.2]} 30. Red1 {[%clk 0:00:45.2]} 30... Rae5
{[%clk 0:00:28.5]} 31. Qd2 {[%clk 0:00:36.3]} 31... h4 {[%clk 0:00:28]} 32. Rc6
{[%clk 0:00:34.2]} 32... Kg7 {[%clk 0:00:26.6]} 33. Qf4 {[%clk 0:00:30.4]} 33...
Re1+ {[%clk 0:00:23.7]} 34. Rxe1 {[%clk 0:00:30.5]} 34... Rxe1+ {[%clk
0:00:25.6]} 35. Kh2 {[%clk 0:00:32]} 35... d3 {[%clk 0:00:23.9]} 36. Rc7 {[%clk
0:00:27.4]} 36... Re7 {[%clk 0:00:15.5]} 37. Rxe7 {[%clk 0:00:22.6]} 37... Qxe7
{[%clk 0:00:17.4]} 38. a4 {[%clk 0:00:20.6]} 38... Qd7 {[%clk 0:00:12.8]} 39. a5
{[%clk 0:00:20.2]} 39... d2 {[%clk 0:00:13.5]} 40. Bd1 {[%clk 0:00:15.3]} 40...
f6 {[%clk 0:00:14.2]} 41. a6 {[%clk 0:00:16.1]} 41... g5 {[%clk 0:00:14.9]} 42.
Qe4 {[%clk 0:00:13.1]} 42... Kg6 {[%clk 0:00:11]} 43. Qb7 {[%clk 0:00:04.3]}
43... Qd6+ {[%clk 0:00:11.9]} 44. Kg1 {[%clk 0:00:05.4]} 44... Qe5 {[%clk
0:00:11.6]} 45. Qf3 {[%clk 0:00:06]} 45... Qa1 {[%clk 0:00:11.9]} 46. Qh5+
{[%clk 0:00:04.9]} 46... Kg7 {[%clk 0:00:12.4]} 47. Qf3 {[%clk 0:00:06.6]} 47...
Nd4 {[%clk 0:00:12.9]} 48. Qb7+ {[%clk 0:00:07.8]} 48... Kh6 {[%clk 0:00:13.1]}
49. a7 {[%clk 0:00:09.4]} 49... Qxd1+ {[%clk 0:00:13.9]} 50. Kh2 {[%clk
0:00:11.3]} 50... Ne2 {[%clk 0:00:15.1]} 0-1